bitfinex-derivatives/quotes_BTCF0:USTF0_20220103
["timestamp","ask_amount","ask_price","bid_price","bid_amount"]
[1641242420712,1.11663992,45801.0,45800.0,0.01232838]
[1641242421309,1.11663992,45801.0,45799.0,0.14033567]
[1641242421510,1.30663992,45801.0,45791.0,0.0218336]
[1641242421711,0.18,45797.0,45788.0,1.62434092]
[1641242421913,0.18,45797.0,45792.0,0.01233126]
[1641242422109,0.009794,45796.0,45792.0,0.01233126]
[1641242422310,0.009794,45796.0,45789.0,0.01233126]
[1641242422509,0.009794,45796.0,45793.0,0.01233126]
[1641242422713,0.009794,45796.0,45790.0,0.01233126]
[1641242422909,0.18,45791.0,45783.0,1.62434307]
[1641242423110,0.07078,45791.0,45783.0,1.62434307]
[1641242423314,0.18,45786.0,45783.0,1.62434307]
[1641242423514,0.18,45786.0,45784.0,0.01233249]
[1641242423913,0.0933615,45785.0,45784.0,0.01233249]
[1641242424512,0.23369717,45785.0,45784.0,0.01233249]
[1641242424712,0.23369717,45785.0,45779.0,0.01233249]
[1641242424912,0.23369717,45785.0,45784.0,0.01233249]
[1641242425111,0.23369717,45785.0,45780.0,0.01233249]
[1641242425112,0.00983184,45784.0,45780.0,0.01233249]
[1641242425514,1.63771795,45785.0,45773.0,0.32033567]
[1641242425716,0.00983184,45783.0,45775.0,0.02184144]
[1641242426214,0.85423611,45783.0,45775.0,0.20184144]
[1641242426512,0.00983184,45782.0,45775.0,0.20184144]
[1641242426915,0.00983184,45782.0,45778.0,0.12]
[1641242427113,0.85423611,45783.0,45781.0,0.02183632]
[1641242427314,0.85423611,45783.0,45781.0,0.02283632]
[1641242427513,0.182,45782.0,45781.0,0.02283632]
[1641242427713,0.182,45782.0,45781.0,0.02183632]
[1641242427916,0.182,45782.0,45781.0,0.26289984]
[1641242428117,0.182,45782.0,45777.0,0.0243751]
[1641242428522,0.19183192,45782.0,45777.0,0.0243751]
[1641242428716,0.00983192,45781.0,45777.0,0.0243751]
[1641242429116,0.0001,45780.0,45777.0,0.0243751]
[1641242429617,0.0001,45780.0,45779.0,0.002]
[1641242429817,0.0001,45780.0,45779.0,0.02383857]
[1641242430019,0.0001,45780.0,45779.0,0.02283857]
[1641242430617,0.0001,45780.0,45779.0,0.02383857]
[1641242430817,0.0001,45780.0,45779.0,0.02283857]
[1641242431020,1.21902078,45788.0,45781.0,0.16587992]
[1641242431221,0.12,45785.0,45764.0,0.37943651]
[1641242431422,0.18,45765.0,45761.0,0.3446]
[1641242431621,0.08118,45765.0,45761.0,0.3446]
[1641242431821,0.12,45764.0,45761.0,0.3446]
[1641242432021,0.08118,45765.0,45761.0,0.3446]
[1641242432221,0.08118,45765.0,45764.0,0.001]
[1641242432622,0.22151567,45765.0,45764.0,0.001]
[1641242432924,0.23135071,45765.0,45764.0,0.001]
[1641242433124,0.23135071,45765.0,45764.0,0.006428]
[1641242433330,0.14033567,45765.0,45764.0,0.02727054]
[1641242433528,0.26133567,45765.0,45764.0,0.519138]
[1641242433923,0.26133567,45765.0,45764.0,0.520138]
[1641242434323,1.15302078,45773.0,45764.0,0.584958]
[1641242434624,0.14033567,45782.0,45772.0,0.14033567]
[1641242434824,0.14033567,45782.0,45772.0,0.16217445]
[1641242435024,0.18,45781.0,45773.0,0.329743]
[1641242435225,0.18,45777.0,45773.0,0.005428]
[1641242435425,0.18,45774.0,45773.0,0.005428]
[1641242435626,0.18,45774.0,45772.0,0.192]
[1641242437327,0.18,45774.0,45767.0,0.14033567]
[1641242437527,0.184,45774.0,45772.0,0.187]
[1641242437727,0.369794,45773.0,45772.0,0.187]
[1641242438127,0.189794,45773.0,45772.0,0.187]
[1641242438329,0.369794,45773.0,45772.0,0.187]
[1641242438726,0.51012967,45773.0,45772.0,0.187]
[1641242438928,0.51012967,45773.0,45759.0,0.02184742]
[1641242439233,0.18,45770.0,45759.0,0.02184742]
[1641242439427,0.18,45769.0,45759.0,0.20584742]
[1641242439628,0.18,45766.0,45759.0,0.20584742]
[1641242439829,0.27012967,45773.0,45759.0,0.20584742]
[1641242440028,0.18,45763.0,45759.0,0.20584742]
[1641242440228,0.18,45763.0,45762.0,0.002]
[1641242440428,0.09545,45769.0,45762.0,0.002]
[1641242440628,0.14033567,45766.0,45762.0,0.01233613]
[1641242440828,0.14033567,45766.0,45759.0,0.20584742]
[1641242440829,0.14033567,45766.0,45760.0,0.01233613]
[1641242441031,0.14033567,45766.0,45765.0,0.001]
[1641242441230,0.14033567,45766.0,45761.0,0.01233613]
[1641242441436,0.14033567,45766.0,45759.0,0.02184742]
[1641242441437,0.14033567,45766.0,45765.0,0.01333613]
[1641242441631,0.14033567,45766.0,45762.0,0.01233613]
[1641242441831,0.14033567,45766.0,45765.0,0.01333613]
[1641242442034,0.32033567,45766.0,45763.0,0.01233613]
[1641242442232,0.14033567,45766.0,45763.0,0.01233613]
[1641242442432,0.14033567,45766.0,45765.0,0.01333613]
[1641242442632,0.14033567,45766.0,45764.0,0.01233613]
[1641242442834,0.14033567,45766.0,45765.0,0.01233613]
[1641242443034,0.32033567,45766.0,45765.0,0.01233613]
[1641242443234,0.32033567,45766.0,45760.0,0.01233613]
[1641242443435,0.32033567,45766.0,45765.0,0.192]
[1641242443636,0.32033567,45766.0,45765.0,0.20433613]
[1641242444640,0.32033567,45766.0,45765.0,0.01233613]
[1641242445043,0.32033567,45766.0,45760.0,0.01233613]
[1641242445339,0.18,45762.0,45759.0,0.02184742]
[1641242445555,0.18,45762.0,45761.0,0.01233664]
[1641242445755,0.18,45762.0,45760.0,0.01233664]
[1641242445955,0.18,45762.0,45761.0,0.01333664]
[1641242447456,0.18,45762.0,45761.0,0.20233664]
[1641242448557,0.18,45762.0,45761.0,0.20333664]
[1641242448758,0.18,45762.0,45761.0,0.01433664]
[1641242448958,0.18,45762.0,45761.0,0.34393464]
[1641242449156,0.18,45762.0,45761.0,0.34293464]
[1641242449356,0.18,45762.0,45761.0,0.34393464]
[1641242449559,0.18,45762.0,45761.0,0.53493464]
[1641242449857,0.18,45762.0,45761.0,0.61207464]
[1641242450058,0.00982514,45762.0,45761.0,0.61207464]
[1641242450256,0.12982514,45762.0,45761.0,0.61207464]
[1641242450458,0.00982514,45766.0,45761.0,0.61107464]
[1641242450658,0.18982514,45762.0,45761.0,0.28047664]
[1641242450859,0.18982514,45762.0,45761.0,0.193]
[1641242450860,0.18,45762.0,45761.0,0.193]
[1641242451159,0.18982514,45762.0,45761.0,0.001]
[1641242451361,0.00982514,45762.0,45761.0,0.002]
[1641242451558,0.00982514,45762.0,45761.0,0.194]
[1641242451759,0.18,45762.0,45761.0,0.193]
[1641242452058,0.00982514,45762.0,45761.0,0.193]
[1641242452461,0.00982514,45772.0,45761.0,0.193]
[1641242452660,0.14033567,45775.0,45763.0,0.16871226]
[1641242452858,0.18,45783.0,45769.0,0.14033567]
[1641242453059,0.32033567,45780.0,45775.0,0.02183971]
[1641242453260,0.32033567,45780.0,45779.0,0.001]
[1641242453461,0.14033567,45780.0,45779.0,0.001]
[1641242453661,1.62092849,45780.0,45779.0,0.001]
[1641242453863,1.80092849,45780.0,45779.0,0.001]
[1641242454061,1.8106514,45780.0,45779.0,0.001]
[1641242454460,1.8106514,45780.0,45770.0,0.02184198]
[1641242454663,0.06,45779.0,45770.0,0.02184198]
[1641242454861,0.00972291,45779.0,45775.0,0.001]
[1641242455062,0.14033567,45780.0,45778.0,0.001]
[1641242455361,0.18,45779.0,45770.0,0.02184198]
[1641242455563,0.18,45777.0,45775.0,0.182]
[1641242455762,0.18,45777.0,45776.0,0.002]
[1641242455962,0.18,45777.0,45776.0,0.001]
[1641242456663,0.14033567,45780.0,45776.0,0.001]
[1641242456864,0.14033567,45780.0,45779.0,0.002]
[1641242457062,0.18,45788.0,45779.0,0.02283772]
[1641242457262,0.0001,45790.0,45779.0,1.14887972]
[1641242457464,0.0001,45790.0,45780.0,0.005428]
[1641242457662,0.0001,45790.0,45785.0,0.001]
[1641242457862,0.0001,45790.0,45789.0,0.002]
[1641242458065,0.0001,45790.0,45789.0,0.07797]
[1641242458462,0.0001,45790.0,45789.0,0.07697]
[1641242458662,0.1801,45790.0,45789.0,0.07697]
[1641242458863,0.0001,45790.0,45789.0,0.07697]
[1641242459563,0.1801,45790.0,45789.0,0.26397]
[1641242459763,0.1801,45790.0,45789.0,0.26497]
[1641242459965,0.0001,45790.0,45789.0,0.26497]
[1641242460167,0.1801,45790.0,45789.0,0.26497]
[1641242460368,0.1801,45790.0,45789.0,0.26397]
[1641242460570,0.1801,45790.0,45789.0,0.187]
[1641242460772,0.1801,45790.0,45770.0,0.02184196]
[1641242460773,0.35307163,45790.0,45770.0,0.02184196]
[1641242460970,0.18,45776.0,45768.0,0.14033567]
[1641242461173,0.18,45776.0,45769.0,0.14033567]
[1641242461174,0.2656,45776.0,45769.0,0.14033567]
[1641242461571,0.18,45770.0,45769.0,0.30533567]
[1641242461775,0.18,45770.0,45769.0,0.30633567]
[1641242462173,0.18,45770.0,45769.0,0.30533567]
[1641242462371,0.06,45772.0,45769.0,0.30533567]
[1641242462573,0.12,45770.0,45769.0,0.30533567]
[1641242462773,0.12,45770.0,45769.0,0.14133567]
[1641242463176,0.078084,45779.0,45769.0,0.14133567]
[1641242463375,0.078084,45779.0,45769.0,0.14033567]
[1641242463576,0.181,45770.0,45769.0,0.31833567]
[1641242463778,0.181,45770.0,45769.0,0.31933567]
[1641242463978,0.181,45770.0,45769.0,0.64597767]
[1641242464380,0.361,45770.0,45769.0,0.31933567]
[1641242464779,0.07735,45771.0,45769.0,0.14133567]
[1641242464977,0.009794,45779.0,45769.0,0.14033567]
[1641242465179,0.18,45772.0,45769.0,0.14033567]
[1641242465380,0.18,45775.0,45771.0,0.001]
[1641242465582,0.009794,45779.0,45769.0,0.14033567]
[1641242465583,0.198794,45779.0,45774.0,0.02383894]
[1641242465781,0.18,45775.0,45769.0,0.16217822]
[1641242465981,0.18,45775.0,45774.0,0.001]
[1641242466183,0.18,45775.0,45774.0,0.002]
[1641242466581,0.198794,45779.0,45774.0,0.002]
[1641242466782,0.18,45775.0,45769.0,0.16217816]
[1641242466983,0.009794,45779.0,45774.0,0.002]
[1641242467182,0.18,45775.0,45770.0,0.01233488]
[1641242467382,0.18,45775.0,45769.0,0.16217816]
[1641242467383,1.02685988,45775.0,45774.0,0.002]
[1641242467583,1.02685988,45775.0,45774.0,0.111]
[1641242467783,1.02685988,45775.0,45774.0,0.12333487]
[1641242467983,0.18,45775.0,45774.0,0.12333487]
[1641242468185,0.18,45775.0,45774.0,0.111]
[1641242468989,0.84685988,45775.0,45774.0,0.08619733]
[1641242469285,0.62662672,45775.0,45774.0,0.09853153]
[1641242469488,0.79062672,45775.0,45774.0,0.61138653]
[1641242469887,0.164,45775.0,45774.0,0.61138653]
[1641242470287,0.17249635,45775.0,45774.0,0.61138653]
[1641242470788,0.17249635,45775.0,45774.0,0.7517222]
[1641242471189,0.164,45775.0,45774.0,0.7517222]
[1641242471389,0.00849645,45775.0,45774.0,0.5677222]
[1641242471589,0.00849645,45775.0,45774.0,0.7567222]
[1641242471789,0.18,45781.0,45774.0,0.7567222]
[1641242471790,0.00849645,45780.0,45774.0,0.7567222]
[1641242471991,0.00849645,45780.0,45779.0,0.001]
[1641242472289,0.00849645,45780.0,45779.0,0.327189]
[1641242472690,0.18849645,45782.0,45779.0,0.3405232]
[1641242472891,0.00849645,45782.0,45781.0,0.002]
[1641242473091,1.20979983,45784.0,45781.0,0.002]
[1641242473290,1.20979983,45784.0,45781.0,0.0123342]
[1641242473493,0.163,45782.0,45781.0,0.1973342]
[1641242474596,0.343,45782.0,45781.0,0.1973342]
[1641242474993,0.18,45782.0,45781.0,0.0123342]
[1641242475393,0.18,45782.0,45780.0,0.14033567]
[1641242475593,0.364,45782.0,45781.0,0.159]
[1641242476094,0.364,45782.0,45781.0,0.16]
[1641242476396,0.364,45782.0,45781.0,0.17133443]
[1641242476794,0.18,45782.0,45781.0,0.001]
[1641242477199,0.18,45782.0,45781.0,0.01333442]
[1641242477396,0.18,45782.0,45781.0,0.001]
[1641242477596,0.35,45782.0,45781.0,0.167]
[1641242478802,0.20184538,45782.0,45766.0,0.02184402]
[1641242479000,0.18,45771.0,45766.0,0.02184402]
[1641242479233,0.18,45767.0,45765.0,0.44141197]
[1641242479836,0.18,45767.0,45766.0,0.001]
[1641242480336,0.18,45767.0,45766.0,0.002]
[1641242480534,0.18,45767.0,45766.0,0.001]
[1641242480732,0.18,45767.0,45766.0,0.002]
[1641242481634,0.18,45767.0,45766.0,0.001]
[1641242481635,0.37,45767.0,45766.0,0.001]
[1641242481834,0.37,45767.0,45766.0,0.002]
[1641242482133,0.37,45767.0,45765.0,0.44141197]
[1641242482535,0.37,45767.0,45766.0,0.001]
[1641242482934,0.18,45767.0,45766.0,0.001]
[1641242483135,0.18,45767.0,45765.0,0.44141197]
[1641242483334,0.18,45767.0,45762.0,0.14033567]
[1641242483536,0.18,45763.0,45762.0,0.14033567]
[1641242483938,0.36,45763.0,45758.0,0.02]
[1641242484138,0.18,45759.0,45758.0,0.02]
[1641242484338,0.36,45759.0,45758.0,0.02]
[1641242484839,0.50033567,45759.0,45758.0,0.02]
[1641242485439,0.32033567,45759.0,45758.0,0.02]
[1641242485638,0.50733567,45759.0,45758.0,0.02]
[1641242486839,0.32033567,45759.0,45758.0,0.02]
[1641242487443,0.51033567,45759.0,45758.0,0.02]
[1641242488242,0.51883623,45759.0,45758.0,0.02]
[1641242488944,0.32883623,45759.0,45758.0,0.02]
[1641242489147,0.50883623,45759.0,45758.0,0.02]
[1641242489645,0.69183623,45759.0,45758.0,0.02]
[1641242490746,0.50883623,45759.0,45758.0,0.02]
[1641242491449,0.68983623,45759.0,45747.0,0.14033567]
[1641242491649,0.18,45748.0,45747.0,0.14033567]
[1641242491854,0.18,45748.0,45747.0,0.14233567]
[1641242492455,0.18,45757.0,45747.0,0.14233567]
[1641242492653,0.18,45748.0,45747.0,0.55357867]
[1641242492855,0.18,45748.0,45747.0,0.55457867]
[1641242493052,0.18,45748.0,45747.0,0.55357867]
[1641242493455,0.34,45748.0,45747.0,0.55357867]
[1641242493655,0.34,45748.0,45747.0,0.55457867]
[1641242494054,0.16247948,45748.0,45747.0,0.55457867]
[1641242494255,0.16,45748.0,45747.0,0.55457867]
[1641242494454,0.16247948,45748.0,45747.0,0.56691794]
[1641242494855,0.00247948,45748.0,45747.0,0.56691794]
[1641242495058,0.18,45757.0,45747.0,0.56691794]
[1641242495358,0.00247948,45748.0,45747.0,0.22568567]
[1641242495555,0.16947948,45748.0,45747.0,0.14033567]
[1641242495956,0.17798136,45748.0,45747.0,0.14133567]
[1641242496156,0.17798136,45748.0,45747.0,0.14033567]
[1641242496557,0.17798136,45748.0,45747.0,0.14133567]
[1641242496756,0.01098136,45748.0,45747.0,0.14033567]
[1641242496960,0.01098136,45748.0,45747.0,0.14133567]
[1641242497257,0.01098136,45748.0,45747.0,0.14033567]
[1641242497556,0.19398136,45748.0,45747.0,0.14033567]
[1641242497757,0.19398136,45748.0,45747.0,0.14133567]
[1641242497969,0.19398136,45748.0,45747.0,0.14033567]
[1641242498269,0.19398136,45748.0,45747.0,0.14133567]
[1641242498468,0.19398136,45748.0,45747.0,0.001]
[1641242498669,0.20377536,45748.0,45739.0,0.02185673]
[1641242498975,0.00247948,45740.0,45739.0,0.02185673]
[1641242499570,0.18447948,45740.0,45739.0,0.02185673]
[1641242500069,0.18447948,45740.0,45730.0,0.16219681]
[1641242500272,0.00247948,45735.0,45730.0,0.16219681]
[1641242500476,0.00247948,45734.0,45730.0,0.16219681]
[1641242500671,0.00247948,45734.0,45733.0,0.0218593]
[1641242500871,0.00247948,45734.0,45733.0,0.0228593]
[1641242501073,0.00247948,45734.0,45733.0,0.0238593]
[1641242501274,0.00247948,45743.0,45733.0,0.1157573]
[1641242501471,0.00247948,45743.0,45742.0,0.001]
[1641242501672,0.00247948,45743.0,45740.0,0.11752052]
[1641242501673,0.00849834,45742.0,45740.0,0.11752052]
[1641242501872,0.01097782,45743.0,45740.0,0.12294852]
[1641242502073,0.00247948,45745.0,45742.0,0.06]
[1641242502273,0.00247948,45745.0,45740.0,0.005428]
[1641242502475,0.00247948,45742.0,45740.0,0.005428]
[1641242502673,0.00247948,45742.0,45741.0,0.001]
[1641242503075,0.01097743,45742.0,45738.0,0.02185709]
[1641242503276,0.00849795,45743.0,45741.0,0.001]
[1641242503475,0.00849795,45741.0,45738.0,0.02185709]
[1641242503676,0.19097743,45742.0,45738.0,0.02185709]
[1641242503875,0.00849795,45740.0,45738.0,0.06892]
[1641242504075,0.00247948,45745.0,45743.0,0.04076818]
[1641242504275,0.00247948,45745.0,45743.0,0.04619618]
[1641242504476,0.00247948,45745.0,45744.0,0.328715]
[1641242504876,0.00247948,45745.0,45744.0,0.14033567]
[1641242505279,0.00247948,45745.0,45744.0,0.14133567]
[1641242505476,0.18547948,45745.0,45744.0,0.14033567]
[1641242506076,0.36547948,45745.0,45744.0,0.14033567]
[1641242506279,0.37527348,45745.0,45744.0,0.001]
[1641242506480,0.37527348,45745.0,45732.0,0.02186]
[1641242506679,0.00247948,45734.0,45727.0,0.02186253]
[1641242506878,0.00247948,45728.0,45727.0,0.02186253]
[1641242507479,0.17,45728.0,45727.0,0.19286253]
[1641242508078,0.17247948,45728.0,45727.0,0.19286253]
[1641242508280,0.17247948,45728.0,45727.0,0.19386253]
[1641242508478,0.17247948,45728.0,45727.0,0.19486253]
[1641242508778,0.00247948,45728.0,45727.0,0.02286253]
[1641242508977,0.00247948,45728.0,45727.0,0.02386253]
[1641242509177,0.14033567,45732.0,45727.0,0.14138305]
[1641242509379,0.14281515,45732.0,45727.0,0.08333253]
[1641242509579,0.14281515,45732.0,45727.0,0.25733253]
[1641242509779,0.14033567,45732.0,45731.0,0.001]
[1641242509979,0.14281515,45732.0,45727.0,0.19586253]
[1641242510180,0.14033567,45732.0,45731.0,0.001]
[1641242510380,0.14281515,45732.0,45731.0,0.001]
[1641242510580,0.14281515,45732.0,45731.0,0.01334575]
[1641242511080,0.14281515,45732.0,45731.0,0.001]
[1641242511280,0.14281515,45732.0,45731.0,0.01334575]
[1641242511479,0.32081515,45732.0,45731.0,0.139]
[1641242511680,0.32081515,45732.0,45731.0,0.15134575]
[1641242512282,0.32081515,45732.0,45731.0,0.15234575]
[1641242512682,0.32081515,45732.0,45731.0,0.15134575]
[1641242512882,0.32081515,45732.0,45731.0,0.15234575]
[1641242513285,0.32081515,45732.0,45731.0,0.15134575]
[1641242513484,0.49881515,45732.0,45731.0,0.256]
[1641242514886,0.32081515,45732.0,45731.0,0.117]
[1641242515087,0.14281515,45732.0,45727.0,0.02186253]
[1641242515286,0.00247948,45728.0,45725.0,0.005428]
[1641242515486,0.32281515,45732.0,45731.0,0.118]
[1641242515687,0.32281515,45732.0,45731.0,0.20377]
[1641242516087,0.32281515,45732.0,45731.0,0.40415106]
[1641242516088,0.18,45732.0,45731.0,0.40415106]
[1641242516487,0.03101737,45732.0,45731.0,0.34415106]
[1641242516685,0.03101737,45732.0,45731.0,0.34957906]
[1641242516887,0.14033567,45737.0,45731.0,0.59887552]
[1641242517087,0.14033567,45737.0,45736.0,0.002]
[1641242517487,0.14033567,45742.0,45736.0,0.20137845]
[1641242517690,0.00247948,45744.0,45741.0,0.001]
[1641242517890,0.00247948,45744.0,45743.0,0.001]
[1641242518489,0.00247948,45744.0,45741.0,0.09344]
[1641242518889,0.00247948,45744.0,45743.0,0.001]
[1641242519491,0.00247948,45744.0,45743.0,0.179]
[1641242519791,0.01097804,45744.0,45743.0,0.179]
[1641242519990,0.00247948,45744.0,45743.0,0.179]
[1641242520190,0.00247948,45744.0,45743.0,0.178]
[1641242520391,0.01097804,45744.0,45743.0,0.178]
[1641242520591,0.00247948,45744.0,45743.0,0.179]
[1641242520791,0.01097804,45744.0,45743.0,0.178]
[1641242520993,0.00247948,45744.0,45743.0,0.001]
[1641242521390,0.01097804,45744.0,45743.0,0.001]
[1641242521592,0.01097804,45744.0,45743.0,0.164]
[1641242521791,0.01097804,45744.0,45743.0,0.165]
[1641242521992,0.02077204,45744.0,45743.0,0.164]
[1641242522393,0.08048735,45744.0,45726.0,1.914]
[1641242522696,0.00247948,45727.0,45726.0,1.914]
[1641242522893,0.08477948,45727.0,45722.0,0.14033567]
[1641242523095,0.00247948,45723.0,45713.0,1.61703284]
[1641242523295,0.009794,45722.0,45718.0,0.021867]
[1641242523497,0.18247948,45719.0,45718.0,0.021867]
[1641242523694,0.00247948,45719.0,45713.0,1.47669717]
[1641242523894,0.00247948,45714.0,45713.0,1.47669717]
[1641242524094,0.00247948,45717.0,45713.0,1.47769717]
[1641242524297,0.00849856,45718.0,45716.0,0.001]
[1641242524595,0.00849856,45716.0,45713.0,1.47669717]
[1641242524797,0.00849856,45717.0,45715.0,0.001]
[1641242524995,0.00247948,45719.0,45716.0,0.001]
[1641242525199,0.14033567,45720.0,45718.0,0.02186639]
[1641242525397,0.14033567,45732.0,45718.0,0.02186639]
[1641242525596,0.14281515,45728.0,45722.0,0.11752052]
[1641242525797,0.14281515,45728.0,45721.0,0.17752052]
[1641242526099,0.14281515,45728.0,45720.0,0.02186548]
[1641242526397,0.14281515,45728.0,45721.0,0.17752052]
[1641242526598,1.9837,45739.0,45727.0,0.13938284]
[1641242526798,1.99827948,45740.0,45736.0,0.17752052]
[1641242526999,1.93227948,45740.0,45734.0,0.14033567]
[1641242527597,0.00247948,45740.0,45739.0,0.001]
[1641242527899,0.00247948,45740.0,45739.0,0.07061]
[1641242527900,0.18247948,45740.0,45739.0,0.07061]
[1641242528099,0.18247948,45740.0,45739.0,1e-05]
[1641242528499,0.20434725,45740.0,45739.0,1e-05]
[1641242528899,0.20434413,45740.0,45727.0,1.47669717]
[1641242529100,0.00247948,45732.0,45725.0,1.62246084]
[1641242529300,0.00247948,45732.0,45727.0,0.17752052]
[1641242529501,0.00247948,45732.0,45727.0,0.02186245]
[1641242529702,0.14033567,45733.0,45728.0,0.17752052]
[1641242529901,0.14033567,45733.0,45727.0,0.02186245]
[1641242530102,0.14033567,45733.0,45729.0,0.32962]
[1641242530302,0.14033567,45733.0,45729.0,0.335048]
[1641242530504,0.14033567,45733.0,45731.0,0.17752052]
[1641242530703,0.172,45740.0,45730.0,0.63294395]
[1641242530903,0.00247948,45741.0,45732.0,0.003182]
[1641242531107,0.00247948,45741.0,45737.0,0.02185737]
[1641242531308,0.14281515,45744.0,45737.0,0.08617737]
[1641242531504,0.14281515,45744.0,45737.0,0.26369789]
[1641242531719,0.14281515,45744.0,45739.0,0.11752052]
[1641242532103,0.14281515,45744.0,45743.0,0.00024039]
[1641242532303,0.14033567,45752.0,45743.0,0.00024039]
[1641242532503,0.14033567,45752.0,45747.0,0.17752052]
[1641242532706,0.14033567,45752.0,45751.0,0.001]
[1641242532907,0.14033567,45752.0,45751.0,0.061]
[1641242533105,1.40276316,45761.0,45752.0,0.29285884]
[1641242533305,1.40276316,45761.0,45756.0,0.17752052]
[1641242533506,0.00247948,45765.0,45759.0,0.31462282]
[1641242533706,0.00247948,45765.0,45759.0,0.40022282]
[1641242533906,0.00247948,45765.0,45760.0,0.328267]
[1641242534105,0.14033567,45767.0,45760.0,0.328267]
[1641242534906,0.14033567,45767.0,45759.0,0.40565082]
[1641242535207,0.00247948,45769.0,45759.0,0.40565082]
[1641242535208,0.00247948,45769.0,45762.0,0.14033567]
[1641242535805,0.00247948,45769.0,45767.0,0.001]
[1641242536006,0.00247948,45769.0,45759.0,0.32005082]
[1641242536205,0.00247948,45769.0,45759.0,0.005428]
[1641242536206,0.00247948,45760.0,45759.0,0.005428]
[1641242536608,0.00247948,45760.0,45759.0,0.006428]
[1641242537606,0.00247948,45760.0,45759.0,0.060428]
[1641242539409,0.00247948,45760.0,45759.0,0.006428]
[1641242539609,0.00247948,45760.0,45759.0,0.168428]
[1641242540210,0.01097717,45760.0,45759.0,0.168428]
[1641242540912,0.01097717,45760.0,45759.0,0.006428]
[1641242541512,0.01097717,45760.0,45759.0,0.168428]
[1641242542511,0.84582064,45763.0,45759.0,0.57330805]
[1641242542713,0.84582064,45763.0,45762.0,0.17752052]
[1641242542714,0.63732872,45763.0,45762.0,0.17752052]
[1641242542911,1.2083152,45765.0,45762.0,0.2897822]
[1641242543111,0.14033567,45776.0,45764.0,0.14033567]
[1641242543310,0.14033567,45776.0,45773.0,0.02184012]
[1641242543510,0.14033567,45776.0,45775.0,0.001]
[1641242544814,0.14281515,45776.0,45775.0,0.001]
[1641242545013,0.14033567,45776.0,45775.0,0.001]
[1641242545213,0.00247948,45779.0,45775.0,0.001]
[1641242545413,0.00247948,45779.0,45773.0,0.07245]
[1641242545414,0.00247948,45779.0,45778.0,0.001]
[1641242545815,0.14281515,45786.0,45778.0,0.001]
[1641242546015,0.14281515,45786.0,45782.0,0.001]
[1641242546416,0.14281515,45786.0,45782.0,0.329531]
[1641242546618,0.14281515,45786.0,45782.0,0.50705152]
[1641242547224,0.0001,45790.0,45782.0,0.50705152]
[1641242547618,0.0001,45790.0,45782.0,0.70688558]
[1641242548021,0.0001,45790.0,45782.0,0.68505152]
[1641242548623,0.00247948,45785.0,45782.0,0.507531]
[1641242549022,0.0001,45790.0,45782.0,0.507531]
[1641242549225,0.00247948,45785.0,45782.0,0.179]
[1641242549421,0.00247948,45785.0,45782.0,0.001]
[1641242549622,0.0001,45790.0,45782.0,0.001]
[1641242549623,0.00257948,45790.0,45782.0,0.35652052]
[1641242550223,0.00257948,45790.0,45782.0,0.68381852]
[1641242550421,0.0001,45790.0,45782.0,0.68381852]
[1641242550625,0.14,45783.0,45782.0,0.178]
[1641242550822,0.14,45783.0,45780.0,0.14033567]
[1641242551022,0.00247948,45781.0,45780.0,0.14033567]
[1641242551223,0.02,45783.0,45780.0,0.14133567]
[1641242551424,0.02,45783.0,45780.0,0.14033567]
[1641242551626,0.186,45781.0,45780.0,0.24733567]
[1641242551826,0.18847948,45781.0,45780.0,0.24833567]
[1641242552026,0.02,45783.0,45781.0,0.00755654]
[1641242552225,0.02,45783.0,45782.0,0.001]
[1641242553628,0.02,45783.0,45782.0,0.191]
[1641242554932,0.02,45783.0,45782.0,0.001]
[1641242555635,0.02,45783.0,45782.0,0.192]
[1641242556134,0.02,45783.0,45782.0,0.26334]
[1641242556835,0.02,45783.0,45782.0,0.07234]
[1641242557537,0.02,45783.0,45782.0,0.26734]
[1641242558941,0.0273513,45783.0,45782.0,0.07234]
[1641242559543,0.0001,45790.0,45784.0,0.1751429]
[1641242559744,2.1334,45799.0,45789.0,0.181]
[1641242559745,0.14033567,45795.0,45789.0,0.181]
[1641242559943,0.14033567,45795.0,45791.0,0.18]
[1641242560144,0.14033567,45795.0,45794.0,0.18]
[1641242560345,0.14043567,45800.0,45794.0,0.26136]
[1641242560645,0.14043567,45800.0,45799.0,0.001]
[1641242561448,0.07443567,45800.0,45799.0,0.001]
[1641242561745,0.12443567,45810.0,45799.0,0.186]
[1641242561945,0.12443567,45810.0,45799.0,0.185]
[1641242562147,0.12443567,45810.0,45801.0,0.0218267]
[1641242562345,0.12443567,45810.0,45799.0,0.51106]
[1641242562346,0.12443567,45810.0,45802.0,0.005428]
[1641242562548,0.12443567,45810.0,45807.0,0.001]
[1641242562747,0.12443567,45810.0,45809.0,0.001]
[1641242562948,0.30443567,45810.0,45790.0,0.14033567]
[1641242563147,0.18,45802.0,45799.0,0.14033567]
[1641242563949,0.18,45802.0,45794.0,1.47669717]
[1641242564149,0.18,45796.0,45794.0,1.47669717]
[1641242564348,0.24663,45796.0,45794.0,1.47669717]
[1641242564750,0.24663,45796.0,45790.0,0.31733567]
[1641242564949,0.12,45792.0,45790.0,0.14033567]
[1641242565148,0.12,45792.0,45791.0,0.001]
[1641242565349,0.12,45792.0,45782.0,1.47669717]
[1641242565549,0.009794,45791.0,45790.0,0.185]
[1641242565750,0.189794,45791.0,45790.0,0.185]
[1641242566950,0.189794,45791.0,45781.0,0.14033567]
[1641242567151,0.32033567,45787.0,45781.0,0.14033567]
[1641242567551,0.32033567,45787.0,45781.0,0.31633567]
[1641242568957,0.32033567,45787.0,45782.0,0.327356]
[1641242569151,0.32033567,45787.0,45781.0,0.14033567]
[1641242569552,0.32033567,45787.0,45782.0,0.184]
[1641242570054,0.84813214,45783.0,45782.0,0.184]
[1641242570452,0.84813214,45783.0,45782.0,0.185]
[1641242570653,0.84813214,45783.0,45782.0,0.184]
[1641242570853,0.32033567,45787.0,45781.0,0.14033567]